Cogmind - Beta 13 @@@ ROGUE MODE // 2024.04.18 @ 01:13:16 Player: GregoriusTechneticies Result: Destroyed by MD-TW9(R) with Subdweller Machine Gun Performance ------------- Evolutions (0) 0 Regions Visited (3) 600 Robots Destroyed (20) 100 Value Destroyed (443) 443 Prototype IDs (0) 0 Alien Tech Used (0) 0 Bonus (0) 0 TOTAL SCORE: 1143 Bonus ------- None Cogmind --------- Core Integrity 0/250 Matter 256/300 Energy 200/200 System Corruption 0% Temperature Cool (0) Movement Core (250) Ox4 Location -10/Subcaves Parts ------- > --- POWER (1) -------- Subdweller Power Source > --- PROPULSION (2) --- (None) > --- UTILITY (2) ------ Subdweller Optics Seismic Detector > --- WEAPON (2) ------- Subdweller Machine Gun Barrage Gun > --- INVENTORY (5) ---- Light Ion Engine Subdweller Power Source Wheel Improved Terrain Scanner Mining Laser Peak State ------------ > --- POWER ------------ Subdweller Power Source > --- PROPULSION ------- Subdweller Monowheel Subdweller Monowheel > --- UTILITY ---------- Subdweller Optics Seismic Detector > --- WEAPON ----------- Subdweller Laser Subdweller Machine Gun > --- INVENTORY -------- Subdweller Power Source Subdweller Monowheel Subdweller Optics Improved Terrain Scanner Mining Laser [Rating: 14] Favorites ----------- Power Subdweller Power Source Engine Subdweller Power Source Propulsion Wheel Wheel Wheel Utility Seismic Detector Device Seismic Detector Storage Small Storage Unit Weapon Assault Rifle Energy Gun Subdweller Laser Energy Cannon Subdweller Beam Cannon Ballistic Gun Assault Rifle Special Weapon Flamer Build | -11 -10 -10 -10 ------- Run | Yrd Mat Min Sub Slots Evolved . | . . . . Power . | . . . . Propulsion . | . . . . Utility . | . . . . Weapon . | . . . . Parts Attached 48 | 10 4 2 32 Power 9 | 1 . 1 7 Engine 9 | 1 . 1 7 Core . | . . . . Reactor . | . . . . Propulsion 15 | 3 . 1 11 Treads . | . . . . Leg . | . . . . Wheel 15 | 3 . 1 11 Hover . | . . . . Flight . | . . . . Utility 10 | 4 2 . 4 Device 9 | 3 2 . 4 Storage 1 | 1 . . . Processor . | . . . . Hackware . | . . . . Protection . | . . . . Artifact . | . . . . Weapon 14 | 2 2 . 10 Energy Gun 1 | . . . 1 Energy Cannon 1 | . . . 1 Ballistic Gun 8 | 2 1 . 5 Ballistic Cannon . | . . . . Launcher . | . . . . Special Weapon 4 | . 1 . 3 Impact Weapon . | . . . . Slashing Weapon . | . . . . Piercing Weapon . | . . . . Special Melee Weapon . | . . . . Unidentified Prototypes . | . . . . Parts Lost 8 | . . . 8 Power 1 | . . . 1 Propulsion 2 | . . . 2 Utility 2 | . . . 2 Weapon 3 | . . . 3 Highest Loss Streak 5 | . . . 5 To Critical Strikes 1 | . . . 1 Average Slot Usage (%) 96 | . 100 100 96 Engine 13 | . 14 14 13 Wheel 25 | . 28 28 25 Device 27 | . 21 28 27 Energy Gun 4 | . . . 5 Energy Cannon 2 | . . . 3 Ballistic Gun 19 | . 26 28 18 Special Weapon 1 | . 1 . 1 Naked Turns . | . . . . Heaviest Build 20 | 12 12 8 20 Greatest Support 40 | 20 20 20 40 Greatest Overweight (x) 4 | 1 . . 4 Average Overweight (x) . | . . . . Largest Inventory Capacity 8 | 8 8 5 5 Average Capacity 5 | 7 6 5 5 Most Carried 8 | 8 8 5 5 Average Carried 4 | 4 6 5 4 Final Capacity 8 | 8 5 5 5 Final Carried 8 | 8 5 5 5 Class Distribution -------------------- 81% | Scavenger-Mutant 18% | Mutant Dominant Class ---------------- Mutant | -10/Materials Scavenger-Mutant | -10/Mines Scavenger-Mutant | -10/Subcaves Resources | -11 -10 -10 -10 ----------- Run | Yrd Mat Min Sub Matter Collected 905 | 396 . 54 455 Remotely . | . . . . Salvage Created 677 | 209 . 54 414 Parts 52 | 18 . 7 27 Haulers Intercepted . | . . . . Recyclers Shooed 2 | . 1 1 . Parts Field Recycled . | . . . . Retrieved Matter . | . . . . Parts Self-Destructed 14 | . . . 14 Prevented . | . . . . Kills | -11 -10 -10 -10 ------- Run | Yrd Mat Min Sub Combat Hostiles Destroyed 12 | . . 3 9 Guns 10 | . . 3 7 Cannons 2 | . . . 2 Classes Destroyed 5 | 3 . 1 1 Worker 2 | 2 . . . Tunneler 5 | 5 . . . Recycler 1 | 1 . . . Swarmer 3 | . . 3 . Subdweller 9 | . . . 9 Best Kill Streak 3 | 2 . 3 2 Combat Bots Only 3 | . . 3 2 Max Kills in Single Turn 1 | 1 . 1 1 Gunslinging . | . . . . Exploded . | . . . . Melee . | . . . . Uniques/NPCs Destroyed . | . . . . Combat | -11 -10 -10 -10 -------- Run | Yrd Mat Min Sub Hostile Shots Fired 62 | . . 14 48 Missed 12 | . . 3 9 Damage Taken 1022 | . . 88 934 Core 258 | . . 17 241 Absorbed by Shields . | . . . . Core Remaining (%) 100 | 100 . . . Volleys Fired 92 | 24 4 10 54 Largest 2 | 2 2 2 2 Hottest 180 | 40 100 40 180 Shots Fired 159 | 48 6 20 85 Gun 140 | 48 4 20 68 Cannon 11 | . . . 11 Launcher . | . . . . Special 8 | . 2 . 6 Kinetic 135 | 48 4 20 63 Thermal 24 | . 2 . 22 Explosive . | . . . . Electromagnetic . | . . . . Robot Hit Streak 20 | 5 4 4 20 Robot Miss Streak 6 | 4 2 6 2 Penetration Max . | . . . . Secondary Targets 2 | . . 1 1 Max Gunslinging Chain 1 | . . 1 1 Shots Hit Robots 81 | 26 2 7 46 Core Hits 35 | 13 . 4 18 Critical Kills . | . . . . Critical Parts Destroyed 1 | 1 . . . Critical Strikes 3 | 1 . . 2 Burn 1 | . . . 1 Destroy 2 | 1 . . 1 Melee Attacks . | . . . . Impact . | . . . . Slashing . | . . . . Piercing . | . . . . Sneak Attacks . | . . . . Combat Hostiles . | . . . . Follow-up Attacks . | . . . . Damage Inflicted 1192 | 301 21 89 781 Guns 941 | 301 21 89 530 Cannons 240 | . . . 240 Explosions . | . . . . Melee . | . . . . Ramming . | . . . . Kinetic 864 | 301 21 89 453 Thermal 328 | . . . 328 Explosive . | . . . . Electromagnetic . | . . . . Impact . | . . . . Slashing . | . . . . Piercing . | . . . . Highest Corruption . | . . . . Average Corruption . | . . . . Corruption Purged . | . . . . Corruption Blocked . | . . . . Overload Shots . | . . . . Overflow Damage . | . . . . Projectiles . | . . . . Explosions . | . . . . Melee . | . . . . Knockbacks . | . . . . Impact . | . . . . Kinetic . | . . . . Secondary . | . . . . Self-Inflicted Damage . | . . . . Shots . | . . . . Rammed . | . . . . Targets Rammed . | . . . . Kicked . | . . . . Crushed . | . . . . Highest Temperature 56 | . 40 . 56 Average Temperature 17 | . 22 . 15 Received Heat Transfer 105 | . . . 105 Siege Activations . | . . . . Robots Corrupted . | . . . . Combat Hostiles . | . . . . Parts Fried . | . . . . Impact Corruptions . | . . . . Robots Melted . | . . . . Combat Hostiles . | . . . . Parts Melted . | . . . . Heat Transferred 673 | . . . 673 Parts Sabotaged . | . . . . Parts Stolen . | . . . . Parts Stripped . | . . . . Power Chain Reactions . | . . . . Alert | -11 -10 -10 -10 ------- Run | Yrd Mat Min Sub Peak Influence 86 | 40 42 86 . Initial 26 | . 26 16 . Average 51 | 20 31 83 . Maximum Alert Level . | . . . . Low Security (%) 100 | 100 100 100 . Level 1 . | . . . . Level 2 . | . . . . Level 3 . | . . . . Level 4 . | . . . . Level 5 . | . . . . High Security . | . . . . Max Security . | . . . . Squads Dispatched . | . . . . Investigation . | . . . . Extermination . | . . . . Reinforcement . | . . . . Assault . | . . . . Garrison . | . . . . Intercept . | . . . . Searches Triggered . | . . . . Construction Impeded . | . . . . Haulers Reinforced . | . . . . Active Scanning Responses . | . . . . Cargo Convoy Interrupts . | . . . . Stealth | -11 -10 -10 -10 --------- Run | Yrd Mat Min Sub Distress Signals . | . . . . Communications Jammed . | . . . . Distress Signals . | . . . . Times Spotted 13 | . . 3 10 Peak Tracking Total 3 | . . 3 2 Tactical Retreats . | . . . . Traps | -11 -10 -10 -10 ------- Run | Yrd Mat Min Sub Traps Triggered 1 | . . . 1 Indirectly . | . . . . Trap Hack Attempts . | . . . . Triggered . | . . . . Disarmed . | . . . . Reprogrammed . | . . . . Reused . | . . . . Traps Extracted . | . . . . Installed . | . . . . Triggered . | . . . . Machines | -11 -10 -10 -10 ---------- Run | Yrd Mat Min Sub Machines Disabled 1 | . 1 . . Max in Single Turn 1 | . 1 . . Machines Repaired . | . . . . Machines Dismantled . | . . . . Machines Sabotaged . | . . . . Overloaded Fab Kills . | . . . . Hacking | -11 -10 -10 -10 --------- Run | Yrd Mat Min Sub Machines Accessed 1 | . 1 . . Terminals 1 | . 1 . . Fabricators . | . . . . Repair Stations . | . . . . Recycling Units . | . . . . Scanalyzers . | . . . . Garrison Access . | . . . . Total Hacks 2 | . 2 . . Successful . | . . . . Failed 2 | . 2 . . Catastrophic 1 | . 1 . . Database Lockouts . | . . . . Manual 2 | . 2 . . Terminals 2 | . 2 . . Fabricators . | . . . . Repair Stations . | . . . . Recycling Units . | . . . . Scanalyzers . | . . . . Garrison Access . | . . . . Terminal Hacks . | . . . . Fabricator Hacks . | . . . . Repair Station Hacks . | . . . . Recycling Unit Hacks . | . . . . Scanalyzer . | . . . . Garrison Access Hacks . | . . . . Unauthorized Hacks . | . . . . Terminals . | . . . . Fabricators . | . . . . Repair Stations . | . . . . Recycling Units . | . . . . Scanalyzers . | . . . . Garrison Access . | . . . . Data Cores Recovered . | . . . . Used . | . . . . Hacking Detections 1 | . 1 . . Full Trace Events . | . . . . Feedback Events . | . . . . Feedback Blocked . | . . . . Robot Schematics Acquired . | . . . . Robots Built . | . . . . Authchips . | . . . . Time . | . . . . Total Robot Build Rating . | . . . . Part Schematics Acquired . | . . . . Parts Built . | . . . . Authchips . | . . . . Time . | . . . . Total Part Build Rating . | . . . . Parts Repaired . | . . . . Time . | . . . . Parts Recycled . | . . . . Recycled Matter . | . . . . Retrieved Matter . | . . . . Retrieved Components . | . . . . Parts Scanalyzed . | . . . . Part Schematics Acquired . | . . . . Parts Damaged . | . . . . Bothacking | -11 -10 -10 -10 ------------ Run | Yrd Mat Min Sub Used RIF Installer . | . . . . Robots Hacked . | . . . . Non-combat . | . . . . Combat . | . . . . Robot Hacks Applied . | . . . . Relay Couplers Released . | . . . . Fabnet Peak Effective % . | . . . . Robots Rewired . | . . . . Allies Hacked . | . . . . Hacks Repelled . | . . . . Allies | -11 -10 -10 -10 -------- Run | Yrd Mat Min Sub Total Allies . | . . . . Largest Group . | . . . . Highest-Rated Group . | . . . . Highest-Rated Ally . | . . . . Total Orders . | . . . . Ally Attacks . | . . . . Total Damage . | . . . . Kills . | . . . . Allies Corrupted . | . . . . Allies Melted . | . . . . Intel | -11 -10 -10 -10 ------- Run | Yrd Mat Min Sub Robot Analysis Total . | . . . . Derelict Logs Recovered 3 | . . . 3 Drone Launches . | . . . . Drone Recoveries . | . . . . Exploration | -11 -10 -10 -10 ------------- Run | Yrd Mat Min Sub Turns Passed 2066 | 191 87 245 1543 Spaces Moved 1664 | 124 80 120 1340 Core 2 | 1 . . 1 Treads . | . . . . Legs . | . . . . Wheels 1662 | 123 80 120 1339 Hover . | . . . . Flight . | . . . . Fastest Speed 50 | 50 80 80 80 Average Speed 93 | 82 80 80 96 Slowest Speed 250 | 95 80 80 250 Overloaded Moves . | . . . . Propulsion Burnouts . | . . . . Robots Hopped . | . . . . Cave-ins Triggered . | . . . . Exploration Rate (%) 26 | 5 13 19 69 Regions Visited 3 Branch Regions 2 Pre-discovered Areas 2 | . . . 2 Known Exits Taken . | . . . . Unknown Exits Taken 3 | 1 1 1 . Scrap Searched 1 | . . . 1 Spaces Dug 1 | . 1 . . Terrain Destroyed 2 | . 1 . 1 Melee . | . . . . Projectile 2 | . 1 . 1 AOE . | . . . . Terrain Rammed . | . . . . Walls Destroyed . | . . . . Machines Disabled . | . . . . Actions | -11 -10 -10 -10 --------- Run | Yrd Mat Min Sub Total 2019 | 171 93 250 1505 Wait 149 | . . 118 31 Move 1661 | 123 79 119 1340 Hop . | . . . . Pick Up 31 | 9 3 . 19 Fast Attach 14 | 8 . . 6 Attach 10 | . . . 10 Detach 3 | 1 . . 2 Swap 24 | 2 4 2 16 Drop 35 | 4 3 1 27 Fire 92 | 24 4 10 54 Melee . | . . . . Ram . | . . . . Kick . | . . . . Crush . | . . . . Escape Stasis . | . . . . Rewire . | . . . . Trap . | . . . . Miscellaneous . | . . . . Route ------- -11/Scrapyard -10/Materials -10/Mines -10/Subcaves History --------- Turn | Location | Event 14 | -11/Scrapyard | Discovered new exit (range 15) 192 | -11/Scrapyard | Entered Materials 268 | -10/Materials | Discovered new exit (range 11) 279 | -10/Materials | Entered Mines 318 | -10/Mines | Received a Rocket Launcher from a helpful Derelict 515 | -10/Mines | Discovered new exit (range 5) 524 | -10/Mines | Entered Subcaves 530 | -10/Subcaves | Learned Materials terminal intel 636 | -10/Subcaves | Build established: Scavenger-Mutant 1017 | -10/Subcaves | Lost 5 parts (1p1n2u1w) 1022 | -10/Subcaves | Core integrity fell below 50% 1270 | -10/Subcaves | Learned location of Zion (-7) 1313 | -10/Subcaves | Core integrity fell below 20% 1671 | -10/Subcaves | Shifting Twisted Machinery released Sub. Power Source 1689 | -10/Subcaves | A swath of the cavern ceiling suddenly collapsed 1700 | -10/Subcaves | Shifting Twisted Machinery released Sub. Power Source 2067 | -10/Subcaves | Destroyed by MD-TW9(R) with Subdweller Machine Gun Last Messages --------------- 01850_ Dropped Sub. Machine Gun. 01851_ Dropped Sub. Laser. 01852_ Acquired Sub. Machine Gun. 01881_ Sub. Power Source shoots sparks and powers down. 01881_ Dropped Broken Sub. Power Source. 01954_ Acquired Lgt. Ion Engine. 01959_ Sub. Monowheel shoots sparks and powers down. 01961_ Dropped Broken Sub. Monowheel. 01973_ Acquired Sub. Power Source. 01977_ Subatomizers dissect the Broken Sub. Monowheel. 02033_ Sub. Optics shoots sparks and powers down. 02034_ Dropped Broken Sub. Optics. 02061_ 84-NIT(R) destroyed. 02066_ MD-TW9(R) affixes Scrap Shield Fragment to Scrap Shield. 02066_ Acquired 40 matter. Map ----- +----------------------------------------------------+ | ?????????????????## ##??????????????????# #" | | ??????????????????## ##???????????????????? ##" | | ???????????????????## #??????????????????????? #"" | | ????????????????????###????????????????????????#"" | | ????????????????????????????????????????????????## | | ???????????????????????????????????????????????### | | ???????????????????????????????????????????######" | | ????????????????????????????????????????#### "" | | ?????????????????????????????????######## # | | ???????????????????? ??????###### | | ?????????????????? ??????# ## # | | ????????????????? ?????# # | | ?????????????????? ?????## | | ?????????????????? ??????# | | ??????????????????? ?????## ### ## | | ??????????????????? ???### #?# ## | | ???????????????????# ???# ## ### ## ## | | ???????????????????# #?# ### ## ### ### | | ???????????????????? ?#### #?# #### ##### | | ???????????????????? ????####?# ##??# #???### | | ????????????????????? ?????????###???# ##???## | | ?????????????????????# ???????????????## ##### | | ????????????#????????# ???????????????## ## | | ????????????# ?????## ?#####?????????# | | ??????????????# #### ## ##????????# | | ??????????????# R@[ ##???????## ### # | | ??????????????# ##???????## ##?#### | | ?????????????## ### #####????###?????? | | ?????????????# ! #?????###???## | | ?????????????# ###### #????## ##?## | | ?????????????## ## # ##???## ##????? ### | | ??????????????# ??#?# ##??## ##??????# ### | | ????????????????????## #### ##??????# ## | | ?????????????????????## ## ###?#### ### | | ??????????????????????# ### #?# | | ??????????????????????##### ### ### | | ??????????????????????????## ###?## | | ???????????????????????????####????## | | ????????????????????????????????????## | | ?????????????????????????????????????# | | ?????????????????????????????????????# | | ?????????????????????????????????????### | | ???????????????????????????????????????# | | ???????????????????????????????????????# | | ??????????????????????????????????? | | ???????????????????????????????? ## ## | | ???????????????????????????????# #########? | | ???????????????????????????????#########?????????? | | ?????????????????????????????????????????????????? | | ?????????????????????????????????????????????????? | +----------------------------------------------------+ Best States ------------- Heat Dissipation 25 Energy Generation 15 Energy Capacity 200 Matter Stores 300 Matter Capacity 300 Sight Range 21 Robot Scan Range 14 Terrain Scan Range 16 Terrain Scan Density 10 Evasion (%) 44 Item Schematics ----------------- None Robot Schematics ------------------ None Fabricated ------------ Nothing Alien Tech Used ----------------- None Achievements -------------- None Challenges ------------ None Game ------ Seed FluxBackupNetwork Manual? 0 Play Time 00:21:57 Cumulative 35.5 hours Start 2024.04.18 @ 00:50:23 End 2024.04.18 @ 01:13:16 Sessions 1 Manual Loads 0 Difficulty Rogue Special Mode None Game No. 48 Rogue 33 Adventurer 0 Explorer 15 Win Type - Total 0 Types 0/0/0/0/0/0/0/0/0 Lore% 20 Gallery% 31 Achievement% 22 Wizard Run 0 Options --------- Layout 1 ASCII 0 Keyboard 0 Movement Mouse Keybinds 0 Fullscreen 1 Font 24/Smallcaps Map View 50x35 Zoom Use 0% Tactical HUD 1 Map Filters NONE Filters NONE Steam 1 RUN: bf468068-3bab-43ee-8769-349401d796a3